bitfinex/quotes_SOLUSD_20240713
["timestamp","ask_amount","ask_price","bid_price","bid_amount"]
[1720829153983,21.56,139.47,139.42,11.56]
[1720829153984,11.56,139.45,139.42,7.44420847]
[1720829154480,21.56,139.45,139.42,7.44420847]
[1720829155190,21.56,139.45,139.44,7.44420847]
[1720829155567,66.56,139.45,139.42,7.44420847]
[1720829155863,11.56,139.44,139.4,7.44420847]
[1720829156266,10.0,139.45,139.4,12.46560847]
[1720829156784,11.56,139.44,139.42,7.44420847]
[1720829158880,11.56,139.43,139.42,7.44420847]
[1720829159579,21.56,139.43,139.4,7.44420847]
[1720829160195,11.56,139.42,139.4,7.44420847]
[1720829160482,11.56,139.42,139.39,15.4206]
[1720829161835,10.0,139.45,139.42,7.44420847]
[1720829162303,10.0,139.45,139.4,7.44420847]
[1720829162304,11.56,139.44,139.4,7.44420847]
[1720829162682,10.0,139.45,139.42,7.44420847]
[1720829162987,11.56,139.44,139.42,7.44420847]
[1720829163700,21.56,139.43,139.4,7.44420847]
[1720829163901,11.56,139.42,139.4,7.44420847]
[1720829164211,11.56,139.42,139.38,12.46630847]
[1720829164984,11.56,139.41,139.38,12.46630847]
[1720829170117,10.0,139.43,139.38,12.46630847]
[1720829170414,11.56,139.41,139.38,12.46630847]
[1720829172418,21.56,139.41,139.38,7.44420847]
[1720829172910,11.56,139.4,139.38,7.44420847]
[1720829174324,21.56,139.41,139.38,7.44420847]
[1720829176311,21.56,139.41,139.38,12.46640847]
[1720829176515,21.56,139.41,139.38,7.44420847]
[1720829177602,21.56,139.41,139.38,12.46640847]
[1720829177801,21.56,139.41,139.38,7.44420847]
[1720829178010,11.56,139.39,139.36,7.44420847]
[1720829178222,11.56,139.39,139.36,12.46690847]
[1720829178426,11.56,139.4,139.36,12.46690847]
[1720829178925,21.56,139.39,139.36,12.46690847]
[1720829179115,21.56,139.39,139.36,7.44420847]
[1720829179510,21.56,139.39,139.36,12.46710847]
[1720829181024,10.0,139.41,139.38,7.44420847]
[1720829181228,11.56,139.4,139.38,7.44420847]
[1720829184612,26.18801611,139.45,139.38,19.00420847]
[1720829184613,10.0,139.43,139.38,19.00420847]
[1720829184813,11.56,139.44,139.39,11.56]
[1720829185021,11.56,139.44,139.39,16.5818]
[1720829185337,2.8916733,139.45,139.41,16.5808]
[1720829185630,2.8916733,139.45,139.42,7.44420847]
[1720829185935,2.8916733,139.45,139.44,7.44420847]
[1720829187229,11.56,139.46,139.44,7.44420847]
[1720829187732,10.0,139.45,139.44,7.44420847]
[1720829187939,10.0,139.45,139.42,7.44420847]
[1720829188138,21.56,139.45,139.42,7.44420847]
[1720829188435,10.0,139.43,139.39,12.75267159]
[1720829188932,10.0,139.43,139.4,7.44420847]
[1720829191926,21.56,139.43,139.4,7.44420847]
[1720829193935,11.56,139.44,139.4,7.44420847]
[1720829197645,11.56,139.43,139.4,7.44420847]
[1720829197940,21.56,139.43,139.4,7.44420847]
[1720829198737,21.56,139.43,139.38,7.44420847]
[1720829198738,11.56,139.42,139.38,7.44420847]
[1720829199724,10.0,139.41,139.38,7.44420847]
[1720829199927,11.56,139.4,139.38,7.44420847]
[1720829200129,11.56,139.4,139.36,12.46700847]
[1720829203030,10.0,139.39,139.36,12.46700847]
[1720829203228,21.56,139.39,139.36,7.44420847]
[1720829203924,11.56,139.39,139.36,7.44420847]
[1720829204252,11.56,139.39,139.36,12.46710847]
[1720829204439,11.56,139.39,139.36,7.44420847]
[1720829205931,11.56,139.4,139.36,8.87920081]
[1720829206246,11.56,139.4,139.36,7.44420847]
[1720829206624,10.0,139.41,139.36,8.87919803]
[1720829206829,11.56,139.4,139.36,8.87919803]
[1720829208436,11.56,139.4,139.38,7.44420847]
[1720829208639,10.0,139.43,139.38,7.44420847]
[1720829208839,11.56,139.42,139.37,11.56]
[1720829209140,11.56,139.42,139.38,8.87894316]
[1720829209527,11.56,139.42,139.38,7.44420847]
[1720829209929,11.56,139.41,139.38,7.44420847]
[1720829210760,11.56,139.42,139.38,7.44420847]
[1720829211055,10.0,139.43,139.38,7.44420847]
[1720829211233,11.56,139.42,139.38,7.44420847]
[1720829211632,11.56,139.41,139.38,7.44420847]
[1720829212854,11.56,139.42,139.38,7.44420847]
[1720829213857,11.56,139.41,139.38,7.44420847]
[1720829215135,21.56,139.41,139.38,7.44420847]
[1720829215342,11.56,139.4,139.38,7.44420847]
[1720829222456,10.0,139.43,139.38,12.46630847]
[1720829222639,10.0,139.43,139.38,7.44420847]
[1720829222640,11.56,139.42,139.38,7.44420847]
[1720829222841,10.0,139.43,139.38,7.44420847]
[1720829222842,10.0,139.43,139.38,12.46630847]
[1720829223058,11.56,139.42,139.38,12.46630847]
[1720829223254,11.56,139.42,139.38,7.44420847]
[1720829223454,11.56,139.42,139.4,7.44420847]
[1720829223768,0.30416,164.39,139.4,5.0214]
[1720829223769,11.56,139.45,139.4,5.0214]
[1720829223963,28.6395733,139.47,139.4,6.45235716]
[1720829224341,11.56,139.45,139.4,16.5814]
[1720829224540,11.56,139.44,139.39,20.4973]
[1720829224846,11.56,139.44,139.4,7.44420847]
[1720829225055,25.7479,139.47,139.4,12.46560847]
[1720829225355,11.56,139.45,139.43,7.44420847]
[1720829225555,11.56,139.46,139.43,7.44420847]
[1720829225734,11.56,139.46,139.41,24.02520847]
[1720829227061,11.56,139.46,139.43,7.44420847]
[1720829229383,10.0,139.47,139.43,7.44420847]
[1720829229546,11.56,139.46,139.43,7.44420847]
[1720829232361,10.0,139.47,139.43,7.44420847]
[1720829232362,11.56,139.45,139.43,7.44420847]
[1720829233487,21.56,139.45,139.43,7.44420847]
[1720829233950,11.56,139.45,139.43,7.44420847]
[1720829234154,21.56,139.45,139.43,7.44420847]
[1720829235380,10.0,139.47,139.43,7.44420847]
[1720829235560,11.56,139.46,139.43,7.44420847]
[1720829235877,21.56,139.47,139.43,7.44420847]
[1720829237658,10.0,139.47,139.43,7.44420847]
[1720829238262,10.0,139.47,139.45,7.44420847]
[1720829240886,20.40143125,139.5,139.45,7.44420847]
[1720829241054,11.56,139.49,139.45,7.44420847]
[1720829241257,12.8916733,139.5,139.46,11.56]
[1720829241480,12.8916733,139.5,139.46,12.01988074]
[1720829243163,2.8916733,139.5,139.47,11.56]
[1720829243776,10.0,139.49,139.45,7.44420847]
[1720829244080,21.56,139.49,139.44,16.285]
[1720829244258,21.56,139.49,139.45,7.44420847]
[1720829246671,10.0,139.49,139.45,12.46380847]
[1720829246867,21.56,139.51,139.47,7.44420847]
[1720829247067,21.56,139.51,139.46,16.579]
[1720829247666,11.56,139.51,139.48,7.44420847]
[1720829247861,20.39824047,139.53,139.48,7.44420847]
[1720829248070,11.56,139.52,139.48,7.44420847]
[1720829248278,21.56,139.51,139.48,7.44420847]
[1720829250698,10.39824047,139.53,139.48,7.44420847]
[1720829250699,20.39824047,139.53,139.48,7.44420847]
[1720829250885,24.4516733,139.53,139.48,7.44420847]
[1720829252606,12.8916733,139.53,139.48,19.00420847]
[1720829252779,24.4516733,139.53,139.5,7.44420847]
[1720829253276,12.8916733,139.53,139.5,7.44420847]
[1720829253481,24.4516733,139.53,139.5,7.44420847]
[1720829254975,12.8916733,139.53,139.5,7.44420847]
[1720829255178,24.4516733,139.53,139.5,7.44420847]
[1720829255374,24.4516733,139.53,139.48,19.00420847]
[1720829255579,11.56,139.52,139.48,7.44420847]
[1720829259703,11.56,139.51,139.48,7.44420847]
[1720829261879,10.0,139.5,139.48,7.44420847]
[1720829262202,21.56,139.5,139.48,7.44420847]
[1720829262599,11.56,139.5,139.48,7.44420847]
[1720829262893,10.0,139.52,139.48,12.46270847]
[1720829263092,21.56,139.52,139.48,12.46270847]
[1720829263307,2.8916733,139.53,139.5,7.44420847]
[1720829263517,2.8916733,139.53,139.48,12.46270847]
[1720829263518,11.56,139.52,139.48,12.46270847]
[1720829264025,21.56,139.52,139.48,12.46270847]
[1720829264195,21.56,139.52,139.48,7.44420847]
[1720829264596,11.56,139.51,139.48,7.44420847]
[1720829265013,10.0,139.5,139.48,7.44420847]
[1720829271223,10.0,139.5,139.46,5.0192]
[1720829271224,10.0,139.5,139.46,12.46340847]
[1720829272129,10.0,139.52,139.46,12.46340847]
[1720829272307,11.56,139.51,139.48,7.44420847]
[1720829272823,21.56,139.52,139.48,12.46260847]
[1720829273004,21.56,139.52,139.47,5.0188]
[1720829273209,11.56,139.51,139.47,5.0188]
[1720829275609,11.56,139.5,139.47,5.0188]
[1720829276413,10.0,139.52,139.47,5.0188]
[1720829276613,11.56,139.51,139.48,12.46270847]
[1720829276808,21.56,139.52,139.48,12.46270847]
[1720829277134,21.56,139.52,139.49,5.0182]
[1720829277644,2.8916733,139.53,139.49,5.0182]
[1720829277808,14.4516733,139.53,139.49,5.0182]
[1720829278806,2.8916733,139.53,139.5,7.44420847]
[1720829279111,14.4516733,139.53,139.5,7.44420847]
[1720829280335,10.0,139.54,139.52,7.44420847]
[1720829280536,21.35777797,139.56,139.52,7.44420847]
[1720829280838,56.56,139.55,139.52,7.44420847]
[1720829281035,18.59468702,139.56,139.52,7.44420847]
[1720829281230,11.56,139.55,139.52,7.44420847]
[1720829281543,10.0,139.56,139.52,7.44420847]
[1720829281843,21.56,139.56,139.52,7.44420847]
[1720829283616,21.56,139.54,139.5,7.44420847]
[1720829288237,21.56,139.54,139.49,16.5782]
[1720829288238,11.56,139.51,139.48,23.37950847]
[1720829289933,11.56,139.5,139.48,23.37950847]
[1720829291521,11.56,139.5,139.48,28.39810847]
[1720829293142,10.0,139.52,139.48,28.39810847]
[1720829293345,11.56,139.51,139.48,28.39810847]
[1720829295846,11.56,139.5,139.48,28.39810847]
[1720829296726,11.56,139.49,139.46,12.46340847]
[1720829297041,11.56,139.48,139.46,12.46340847]
[1720829298441,11.56,139.48,139.46,7.44420847]
[1720829299944,21.56,139.48,139.46,7.44420847]
[1720829300122,10.0,139.48,139.46,7.44420847]
[1720829300331,11.56,139.47,139.46,7.44420847]
[1720829300522,21.56,139.48,139.46,7.44420847]
[1720829300723,10.0,139.5,139.46,12.46350847]
[1720829301148,11.56,139.49,139.46,12.46350847]
[1720829301531,11.56,139.49,139.48,7.44420847]
[1720829302960,21.56,139.5,139.48,7.44420847]
[1720829304334,11.56,139.49,139.48,7.44420847]
[1720829309847,21.56,139.5,139.48,7.44420847]
[1720829316662,21.56,139.52,139.5,7.44420847]
[1720829318573,11.56,139.52,139.5,7.44420847]
[1720829319870,14.4516733,139.53,139.5,7.44420847]
[1720829321056,2.8916733,139.53,139.5,7.44420847]
[1720829321266,14.4516733,139.53,139.5,7.44420847]
[1720829325751,2.8916733,139.53,139.5,7.44420847]
[1720829325972,21.56,139.54,139.5,7.44420847]
[1720829326772,23.1925786,139.56,139.52,7.44420847]
[1720829327072,24.4516733,139.56,139.52,7.44420847]
[1720829327651,12.8916733,139.56,139.52,7.44420847]
[1720829327857,24.4516733,139.56,139.52,7.44420847]
[1720829328670,2.8916733,139.56,139.52,7.44420847]
[1720829328871,14.4516733,139.56,139.52,7.44420847]
[1720829329861,14.4516733,139.56,139.54,7.44420847]
[1720829330556,2.8916733,139.56,139.54,7.44420847]
[1720829332376,266.36,139.57,139.54,7.44420847]
[1720829337383,11.56,139.57,139.54,7.44420847]
[1720829339883,21.56,139.58,139.54,7.44420847]
[1720829340382,11.56,139.57,139.54,7.44420847]
[1720829340883,11.56,139.58,139.56,7.44420847]
[1720829341487,21.56,139.58,139.54,7.44420847]
[1720829342097,21.56,139.58,139.56,7.44420847]
[1720829342262,21.56,139.58,139.54,7.44420847]
[1720829343185,10.32095835,139.6,139.53,16.5487]
[1720829343186,20.32095835,139.6,139.56,7.44420847]
[1720829343362,12.81537736,139.6,139.58,7.44420847]
[1720829343565,21.56,139.6,139.58,7.44420847]
[1720829343775,21.56,139.6,139.56,7.44420847]
[1720829343976,17.50406362,139.62,139.56,7.44420847]
[1720829344177,11.56,139.6,139.58,7.44420847]
[1720829344382,17.50406362,139.62,139.58,7.44420847]
[1720829344585,11.56,139.61,139.58,7.44420847]
[1720829345883,21.56,139.62,139.58,7.44420847]
[1720829346086,10.0,139.62,139.58,7.44420847]
[1720829346274,21.56,139.62,139.6,7.44420847]
[1720829346467,12.8916733,139.64,139.6,7.44420847]
[1720829346667,7.5033421,139.65,139.6,7.44420847]
[1720829346881,10.0,139.66,139.6,8.82958201]
[1720829347083,10.0,139.66,139.62,7.44420847]
[1720829347269,17.45378275,139.68,139.61,16.5487]
[1720829347467,21.9530798,139.68,139.64,7.44420847]
[1720829347776,21.56,139.69,139.64,19.00420847]
[1720829347975,21.56,139.69,139.66,7.44420847]
[1720829348285,10.0,139.71,139.66,7.44420847]
[1720829348585,11.56,139.7,139.66,7.44420847]
[1720829349270,10.0,139.71,139.66,7.44420847]
[1720829349465,11.56,139.7,139.68,7.44420847]
[1720829349680,21.56,139.71,139.68,7.44420847]
[1720829350592,10.0,139.71,139.68,7.44420847]
[1720829350781,21.56,139.71,139.68,7.44420847]
[1720829352569,10.0,139.71,139.68,7.44420847]
[1720829352787,21.56,139.71,139.68,7.44420847]
[1720829354173,11.56,139.71,139.68,7.44420847]
[1720829354499,10.0,139.73,139.68,7.44420847]
[1720829354705,11.56,139.72,139.68,7.44420847]
[1720829355401,10.0,139.73,139.7,7.44420847]
[1720829358700,19.05827608,139.74,139.7,8.87406065]
[1720829358890,19.05827608,139.74,139.72,7.44420847]
[1720829359087,10.0,139.73,139.68,7.44420847]
[1720829359605,11.56,139.71,139.68,7.44420847]
[1720829359787,11.56,139.7,139.68,7.44420847]
[1720829363895,10.0,139.71,139.68,7.44420847]
[1720829364087,11.56,139.7,139.68,7.44420847]
[1720829365983,10.0,139.71,139.68,7.44420847]
[1720829365984,21.56,139.71,139.68,7.44420847]
[1720829367895,11.56,139.7,139.68,7.44420847]
[1720829372127,10.0,139.71,139.68,7.44420847]
[1720829372328,11.56,139.7,139.68,7.44420847]
[1720829374116,10.0,139.71,139.68,7.44420847]
[1720829374419,11.56,139.7,139.68,7.44420847]
[1720829376694,11.56,139.69,139.68,7.44420847]
[1720829377315,66.56,139.69,139.68,7.44420847]
[1720829378097,66.56,139.69,139.64,40.57820847]
[1720829378305,16.5723,139.66,139.64,7.44420847]
[1720829378611,11.56,139.65,139.62,7.44420847]
[1720829382022,11.56,139.64,139.62,7.44420847]
[1720829383844,10.0,139.67,139.64,7.44420847]
[1720829384012,11.56,139.66,139.64,7.44420847]
[1720829384332,11.56,139.66,139.62,7.44420847]
[1720829384521,10.0,139.67,139.62,7.44420847]
[1720829384711,11.56,139.66,139.64,7.44420847]
[1720829384910,11.56,139.66,139.61,26.7167]
[1720829384911,10.0,139.64,139.59,7.44420847]
[1720829385123,11.56,139.63,139.59,7.44420847]
[1720829385510,10.0,139.66,139.61,7.44420847]
[1720829385805,11.56,139.64,139.61,7.44420847]
[1720829386736,11.56,139.64,139.63,7.44420847]
[1720829389136,10.0,139.68,139.61,7.44420847]
[1720829389440,11.56,139.65,139.63,7.44420847]
[1720829390741,11.56,139.66,139.63,7.44420847]
[1720829391432,11.56,139.66,139.65,7.44420847]
[1720829391822,11.56,139.66,139.63,7.44420847]
[1720829392516,10.0,139.68,139.63,7.44420847]
[1720829392839,2.8916733,139.73,139.62,16.0369]
[1720829392840,10.0,139.73,139.69,7.44420847]
[1720829393036,10.0,139.73,139.65,7.44420847]
[1720829393217,10.0,139.71,139.65,7.44420847]
[1720829393416,11.56,139.7,139.65,19.00420847]
[1720829393819,11.56,139.7,139.67,7.44420847]
[1720829394027,11.56,139.69,139.67,7.44420847]
[1720829394237,11.56,139.68,139.67,7.44420847]
[1720829395329,10.0,139.69,139.67,7.44420847]
[1720829395535,10.0,139.72,139.67,7.44420847]
[1720829395743,11.56,139.7,139.67,7.44420847]
[1720829396535,10.0,139.72,139.67,7.44420847]
[1720829396834,11.56,139.7,139.67,7.44420847]
[1720829397136,10.0,139.72,139.67,7.44420847]
[1720829397327,11.56,139.69,139.67,7.44420847]
[1720829397532,10.0,139.72,139.67,7.44420847]
[1720829397711,45.0,139.71,139.67,7.44420847]
[1720829397912,11.56,139.68,139.67,7.44420847]
[1720829400221,10.0,139.7,139.67,7.44420847]
[1720829400420,11.56,139.68,139.65,7.44420847]
[1720829400640,11.56,139.66,139.65,7.44420847]
[1720829400841,11.56,139.66,139.62,23.48110847]
[1720829401426,10.0,139.68,139.64,7.44420847]
[1720829401427,11.56,139.67,139.64,7.44420847]
[1720829401634,11.56,139.67,139.66,7.44420847]
[1720829402023,21.56,139.68,139.66,7.44420847]
[1720829402325,10.0,139.68,139.66,7.44420847]
[1720829402530,21.56,139.68,139.66,7.44420847]
[1720829402731,11.56,139.68,139.66,7.44420847]
[1720829404053,10.0,139.7,139.66,7.44420847]
[1720829404355,10.0,139.7,139.64,1.4320357]
[1720829404356,11.56,139.69,139.68,7.44420847]
[1720829405150,56.56,139.69,139.68,7.44420847]
[1720829406251,56.56,139.69,139.66,7.44420847]
[1720829406555,11.56,139.67,139.66,7.44420847]
[1720829407062,45.0,139.69,139.66,7.44420847]
[1720829407357,11.56,139.67,139.66,7.44420847]
[1720829409460,45.0,139.69,139.66,7.44420847]
[1720829409757,11.56,139.68,139.66,7.44420847]
[1720829414567,45.0,139.69,139.66,7.44420847]
[1720829414766,11.56,139.68,139.66,7.44420847]
[1720829416777,45.0,139.69,139.66,7.44420847]
[1720829416960,11.56,139.68,139.66,7.44420847]
[1720829418553,45.0,139.69,139.66,7.44420847]
[1720829418855,11.56,139.68,139.66,7.44420847]
[1720829420985,56.56,139.69,139.66,7.44420847]
[1720829421783,56.56,139.69,139.68,7.44420847]
[1720829423178,56.56,139.69,139.66,7.44420847]
[1720829424991,56.56,139.69,139.68,7.44420847]
[1720829425782,6.0959,139.74,139.68,7.44420847]
[1720829425783,10.0,139.72,139.68,7.44420847]
[1720829426001,56.56,139.71,139.68,7.44420847]
[1720829426684,56.56,139.71,139.7,7.44420847]
[1720829426889,56.56,139.71,139.68,7.44420847]
[1720829427389,56.56,139.71,139.7,7.44420847]
[1720829427970,45.0,139.71,139.7,7.44420847]
[1720829428268,10.0,139.72,139.7,7.44420847]
[1720829428490,21.56,139.72,139.68,7.44420847]
[1720829428679,21.56,139.72,139.68,8.85728829]
[1720829428883,21.56,139.72,139.7,7.44420847]
[1720829429283,28.77931577,139.76,139.7,7.44420847]
[1720829429483,11.56,139.74,139.68,8.85728829]
[1720829429703,56.56,139.73,139.68,20.41728829]
[1720829429909,11.56,139.73,139.7,7.44420847]
[1720829430099,11.56,139.73,139.72,7.44420847]
[1720829430273,11.56,139.73,139.7,7.44420847]
[1720829432080,7.49348404,139.75,139.7,7.44420847]
[1720829432392,11.56,139.73,139.7,7.44420847]
[1720829433895,11.56,139.72,139.7,7.44420847]
[1720829435115,11.56,139.71,139.7,7.44420847]
[1720829438508,11.56,139.72,139.7,7.44420847]
[1720829439286,55.0,139.74,139.7,7.44420847]
[1720829439487,11.56,139.72,139.7,7.44420847]
[1720829441896,55.0,139.74,139.7,7.44420847]
[1720829442205,11.56,139.72,139.7,7.44420847]
[1720829446791,55.0,139.74,139.7,7.44420847]
[1720829447209,11.56,139.72,139.7,7.44420847]
[1720829447985,55.0,139.74,139.7,7.44420847]
[1720829448191,11.56,139.72,139.7,7.44420847]
[1720829454116,11.56,139.73,139.7,7.44420847]
[1720829454314,10.0,139.7,139.66,7.44420847]
[1720829454633,11.56,139.67,139.66,7.44420847]
[1720829458112,11.56,139.67,139.64,7.44420847]
[1720829458113,10.0,139.66,139.64,7.44420847]
[1720829458313,11.56,139.65,139.62,7.44420847]
[1720829458520,11.56,139.63,139.6,7.44420847]
[1720829459138,10.0,139.66,139.6,7.44420847]
[1720829459314,45.0,139.65,139.6,7.44420847]
[1720829459923,45.0,139.65,139.62,7.44420847]
[1720829461149,10.0,139.69,139.62,7.44420847]
[1720829461348,10.0,139.65,139.6,7.44420847]
[1720829461511,11.56,139.63,139.6,7.44420847]
[1720829462020,11.56,139.62,139.6,7.44420847]
[1720829462227,11.56,139.61,139.6,7.44420847]
[1720829464941,11.56,139.63,139.62,7.44420847]
[1720829465112,56.56,139.63,139.6,7.44420847]
[1720829465445,10.0,139.67,139.62,7.44420847]
[1720829465634,11.56,139.65,139.62,7.44420847]
[1720829466230,10.0,139.67,139.64,7.44420847]
[1720829466539,11.56,139.66,139.64,7.44420847]
[1720829467047,10.0,139.67,139.66,7.44420847]
[1720829467236,21.56,139.67,139.64,7.44420847]
[1720829467946,11.56,139.66,139.64,7.44420847]
[1720829469438,10.0,139.69,139.67,7.44420847]
[1720829469640,21.56,139.69,139.67,7.44420847]
[1720829469944,11.56,139.68,139.67,7.44420847]
[1720829470933,56.56,139.68,139.67,7.44420847]
[1720829472253,26.2939,139.71,139.67,7.44420847]
[1720829472254,10.0,139.71,139.67,7.44420847]
[1720829472454,16.3656,139.73,139.67,7.44420847]
[1720829472635,11.56,139.7,139.67,7.44420847]
[1720829473134,10.0,139.69,139.67,7.44420847]
[1720829473456,56.56,139.68,139.67,7.44420847]
[1720829473833,56.56,139.68,139.65,7.44420847]
[1720829474031,11.56,139.67,139.65,7.44420847]
[1720829474455,56.56,139.68,139.65,7.44420847]
[1720829476360,56.56,139.68,139.67,7.44420847]
[1720829477260,56.56,139.68,139.65,7.44420847]
[1720829477460,21.56,139.67,139.62,7.44420847]
[1720829477766,56.56,139.66,139.62,7.44420847]
[1720829478286,11.56,139.65,139.62,7.44420847]
[1720829478950,45.0,139.66,139.62,7.44420847]
[1720829479158,11.56,139.65,139.62,7.44420847]
[1720829483140,10.0,139.65,139.62,7.44420847]
[1720829483358,10.0,139.65,139.6,15.0226]
[1720829483359,11.56,139.63,139.6,22.46680847]
[1720829484860,10.0,139.65,139.6,7.44420847]
[1720829485053,11.56,139.62,139.6,7.44420847]
[1720829490867,11.56,139.61,139.58,7.44420847]
[1720829491551,11.56,139.61,139.6,7.44420847]
[1720829493969,10.0,139.63,139.6,7.44420847]
[1720829494166,11.56,139.61,139.6,7.44420847]
[1720829494569,56.56,139.61,139.6,7.44420847]
[1720829494756,45.0,139.61,139.6,7.44420847]
[1720829497352,56.56,139.61,139.6,7.44420847]
[1720829497680,45.0,139.61,139.6,7.44420847]
[1720829497975,56.56,139.61,139.6,7.44420847]
[1720829499675,45.0,139.61,139.6,7.44420847]
[1720829503373,45.0,139.61,139.55,15.8102]
[1720829503374,10.0,139.63,139.62,7.44420847]
[1720829503582,66.56,139.63,139.62,7.44420847]
[1720829504287,66.56,139.63,139.6,7.44420847]
[1720829504479,45.0,139.62,139.6,7.44420847]
[1720829508968,10.0,139.66,139.62,7.44420847]
[1720829509161,11.56,139.65,139.62,7.44420847]
[1720829509682,11.56,139.65,139.64,7.44420847]
[1720829511091,56.56,139.65,139.64,7.44420847]
[1720829511486,45.0,139.65,139.64,7.44420847]
[1720829511665,26.2485,139.68,139.64,7.44420847]
[1720829511666,10.0,139.68,139.64,7.44420847]
[1720829511991,11.56,139.68,139.64,7.44420847]
[1720829512169,10.0,139.7,139.64,7.44420847]
[1720829512369,11.56,139.68,139.64,8.87280191]
[1720829513070,11.56,139.68,139.64,7.44420847]
[1720829513591,45.0,139.67,139.64,7.44420847]
[1720829513968,56.56,139.67,139.64,7.44420847]
[1720829515995,45.0,139.67,139.64,7.44420847]
[1720829516889,45.0,139.67,139.63,11.56]
[1720829516890,45.0,139.67,139.66,7.44420847]
[1720829518796,10.0,139.7,139.66,7.44420847]
[1720829519104,11.56,139.68,139.64,7.44420847]
[1720829520074,45.0,139.67,139.66,7.44420847]
[1720829526394,45.0,139.67,139.64,7.44420847]
[1720829526607,56.56,139.67,139.64,7.44420847]
[1720829527379,45.0,139.67,139.64,7.44420847]
[1720829528405,45.0,139.67,139.66,7.44420847]
[1720829539903,45.0,139.67,139.64,7.44420847]
[1720829540403,45.0,139.67,139.66,7.44420847]
[1720829544699,45.0,139.67,139.62,7.44420847]
[1720829544700,10.0,139.65,139.62,7.44420847]
[1720829544990,56.56,139.64,139.62,7.44420847]
[1720829545288,45.0,139.64,139.62,19.00420847]
[1720829545691,45.0,139.64,139.62,7.44420847]
[1720829545886,56.56,139.64,139.62,7.44420847]
[1720829546533,45.0,139.64,139.62,7.44420847]
[1720829549102,56.56,139.64,139.62,7.44420847]
[1720829549913,45.0,139.64,139.62,7.44420847]
[1720829551020,56.56,139.64,139.62,7.44420847]
[1720829551722,45.0,139.64,139.62,7.44420847]
[1720829553915,42.5,139.64,139.62,7.44420847]
[1720829555018,11.56,139.66,139.62,7.44420847]
[1720829555720,10.0,139.67,139.62,7.44420847]
[1720829555926,11.56,139.66,139.62,7.44420847]
[1720829556118,45.0,139.65,139.62,7.44420847]
[1720829556417,45.0,139.65,139.64,7.44420847]
[1720829556604,22.5784,139.68,139.64,7.44420847]
[1720829556913,16.2514,139.68,139.64,7.44420847]
[1720829557117,11.56,139.67,139.64,7.44420847]
[1720829558017,45.0,139.66,139.64,7.44420847]
[1720829558700,56.56,139.67,139.64,7.44420847]
[1720829559103,11.56,139.66,139.64,7.44420847]
[1720829559304,56.56,139.65,139.64,7.44420847]
[1720829562626,66.56,139.65,139.6,7.44420847]
[1720829562802,45.0,139.65,139.6,7.44420847]
[1720829563003,21.56,139.65,139.62,7.44420847]
[1720829563304,11.56,139.63,139.62,7.44420847]
[1720829563504,45.0,139.63,139.62,7.44420847]
[1720829564424,42.5,139.63,139.62,7.44420847]
[1720829568108,42.5,139.63,139.6,7.44420847]
[1720829568937,42.5,139.63,139.62,7.44420847]
[1720829586431,10.0,139.67,139.62,7.44420847]
[1720829586618,10.0,139.69,139.62,19.61395536]
[1720829586815,11.56,139.68,139.63,1.43217609]
[1720829587015,11.56,139.67,139.64,7.44420847]
[1720829587428,10.0,139.69,139.64,7.44420847]
[1720829587631,11.56,139.68,139.64,7.44420847]
[1720829587833,45.0,139.67,139.64,7.44420847]
[1720829588122,11.56,139.68,139.64,7.44420847]
[1720829588349,11.56,139.68,139.64,8.27839379]
[1720829588724,11.56,139.68,139.64,7.44420847]